[Event "HUN-chT Youth-Children 2018"]
[Site "Zalakaros"]
[Date "2018.07.27"]
[Round "3"]
[White "Hegedus, Luca"]
[Black "Foldes, Marton Gabor"]
[Result "1-0"]
[ECO "E44"]
[WhiteElo "1805"]
[BlackElo "1590"]
[Annotator "NA"]
[PlyCount "75"]
[EventDate "2018.07.26"]
[EventType "team-tourn"]
[EventCountry "HUN"]
[SourceTitle "playchess.com"]
[Source "ChessBase"]
[SourceQuality "1"]
[TimeControl "5400+30"]

1. d4 {[%emt 0:00:00]} Nf6 {[%emt 0:00:17]} 2. c4 {[%emt 0:00:00]} e6 {[%emt 0:00:20]} 3. Nc3 {[%emt 0:00:20]} Bb4 {[%emt 0:00:21]} 4. e3 {[%emt 0:00:20]} b6 {[%emt 0:00:52]} 5. Nge2 {[%emt 0:01:55]} Bb7 {[%emt 0:00:57]} 6. a3 {[%emt 0:00:21]} Bxc3+ {[%emt 0:00:42]} 7. Nxc3 {[%emt 0:00:22]} O-O {[%emt 0:00:38]} 8. Qc2 {[%emt 0:02:36] E44: Nimzo-Indian: Rubinstein: 4...b6 5 Ne2} (8. d5 exd5 9. cxd5 c6 10. Be2 cxd5 11. Bf3 Nc6 12. Nxd5 Nxd5 13. Bxd5 Ba6 14. Qa4 Qc8 15. Bd2 Kh8 16. Bc3 f6 17. f3 {1-0 (48) Hernandez Carmenates,H (2519)-Liang,A (2392) Brownsville 2016}) 8... d6 {[%emt 0:02:14]} 9. e4 {[%emt 0:01:55]} Nbd7 {[%emt 0:01:32]} 10. Bd3 $146 {[%emt 0:01:21]} ({Predecessor:} 10. Be2 h6 11. O-O e5 12. d5 Qe7 13. Be3 Kh7 14. b4 g6 15. f3 Nh5 {0-1 (57) Pozanco Romasanta,M (1940)-Tejedor Fuente,E (2225) Benidorm 2011}) 10... c5 {[%emt 0:05:31]} 11. d5 {[%emt 0:02:27]} Ne5 {[%emt 0:01:42]} 12. O-O {[%emt 0:01:09]} h6 {[%emt 0:01:51]} 13. Be2 {[%emt 0:05:05]} Ba6 {[%emt 0:10:40]} 14. f4 {[%emt 0:01:02]} Ned7 {[%emt 0:03:30]} 15. dxe6 {[%emt 0:01:59]} fxe6 {[%emt 0:00:45]} 16. Rd1 {[%emt 0:00:24]} Ne8 {[%emt 0:04:12]} (16... Qe7 $16 {war nötig.}) 17. e5 {[%emt 0:04:24]} Qc7 {[%emt 0:06:38]} 18. exd6 {[%emt 0:01:20]} Nxd6 {[%emt 0:01:30]} 19. Qd2 {[%emt 0:00:38]} Nf5 {[%emt 0:10:19]} 20. Qxd7 {[%emt 0:00:43]} Qxd7 {[%emt 0:01:19]} 21. Rxd7 {[%emt 0:00:08]} Nd4 {[%emt 0:00:19]} 22. Bf1 {[%emt 0:03:13]} Bc8 {[%emt 0:03:49]} 23. Rd6 {[%emt 0:01:44]} Kf7 {[%emt 0:03:37]} 24. Nb5 {[%emt 0:05:56]} Ke7 {[%emt 0:03:48]} 25. Rxd4 {[%emt 0:00:32]} cxd4 {[%emt 0:00:45]} 26. Nxd4 {[%emt 0:00:15]} Bb7 {[%emt 0:01:29]} 27. Bd2 {[%emt 0:00:59]} Kf7 {[%emt 0:02:37]} 28. Re1 {[%emt 0:01:33]} Bc8 $18 {[%emt 0:08:59]} 29. g3 {[%emt 0:02:01]} a6 {[%emt 0:03:39]} 30. Bb4 {[%emt 0:02:27]} Re8 {[%emt 0:03:23]} 31. Bg2 {[%emt 0:00:35]} Ra7 {[%emt 0:02:45]} 32. Nc6 {[%emt 0:00:16]} Rc7 {[%emt 0:01:58]} 33. Bd6 {[%emt 0:00:30]} Rb7 {[%emt 0:00:45]} 34. Ne5+ {[%emt 0:00:13]} Kf6 {[%emt 0:00:30]} 35. Bxb7 {[%emt 0:00:08]} Bxb7 {[%emt 0:00:12]} 36. Nd7+ {[%emt 0:00:35]} Kf7 {[%emt 0:00:11]} 37. Nxb6 {[%emt 0:00:21]} Rd8 {[%emt 0:00:14]} 38. c5 {[%emt 0:00:15]} 1-0

[Event "HUN-chT Youth-Children 2018"]
[Site "Zalakaros"]
[Date "2018.07.27"]
[Round "3"]
[White "Koltai, Dora"]
[Black "Forgacs, Attila Jr"]
[Result "0-1"]
[ECO "C88"]
[WhiteElo "1786"]
[BlackElo "1911"]
[Annotator "NA"]
[PlyCount "76"]
[EventDate "2018.07.26"]
[EventType "team-tourn"]
[EventCountry "HUN"]
[SourceTitle "playchess.com"]
[Source "ChessBase"]
[SourceQuality "1"]
[TimeControl "5400+30"]

1. e4 {[%emt 0:00:00]} e5 {[%emt 0:00:04]} 2. Nf3 {[%emt 0:00:00]} Nc6 {[%emt 0:00:04]} 3. Bb5 {[%emt 0:00:04]} a6 {[%emt 0:00:12]} 4. Ba4 {[%emt 0:00:05]} Nf6 {[%emt 0:00:08]} 5. O-O {[%emt 0:00:12]} Be7 {[%emt 0:00:06]} 6. Re1 {[%emt 0:00:09]} b5 {[%emt 0:00:14]} 7. Bb3 {[%emt 0:00:12]} O-O {[%emt 0:00:07]} 8. a4 {[%emt 0:05:05]} b4 {[%emt 0:00:09]} 9. d3 {[%emt 0:14:37]} d6 {[%emt 0:00:22]} 10. h3 {[%emt 0:00:51]} Be6 {[%emt 0:01:42] C88: Closed Ruy Lopez: Anti-Marshall Systems} 11. Nbd2 {[%emt 0:06:25]} (11. Bxe6 fxe6 12. Nbd2 Qe8 13. c3 Rb8 14. d4 bxc3 15. bxc3 exd4 16. cxd4 Nb4 17. e5 Nfd5 18. Ne4 {½-½ (70) Sjugirov,S (2667)-Sasikiran,K (2637) Moscow 2016}) 11... h6 {[%emt 0:02:03]} 12. Nc4 {[%emt 0:03:45]} Qc8 {[%emt 0:01:15]} 13. c3 {[%emt 0:03:56] [#]} bxc3 $146 {[%emt 0:00:25]} ({Predecessor:} 13... Rb8 14. Bc2 Re8 15. Ne3 Bf8 16. d4 bxc3 17. bxc3 exd4 18. cxd4 {0-1 (33) Reichenbach,W (2319)-Rabiega,R (2560) Berlin 2008}) 14. bxc3 {[%emt 0:00:19]} Rb8 {[%emt 0:01:49]} 15. Ba2 {[%emt 0:04:41]} Rd8 {[%emt 0:01:42]} 16. d4 exd4 {[%emt 0:01:38]} 17. cxd4 {[%emt 0:05:25]} d5 {[%emt 0:01:39]} 18. Nce5 {[%emt 0:03:37]} Nxe5 {[%emt 0:16:05]} 19. Nxe5 {[%emt 0:04:53]} c5 {[%emt 0:05:27]} 20. exd5 {[%emt 0:07:50]} Nxd5 {[%emt 0:01:07]} 21. Bxd5 {[%emt 0:08:52]} (21. Ba3 $11) 21... Rxd5 {[%emt 0:02:50]} ({Don't play} 21... Bxd5 22. Ba3 $15) 22. Qf3 {[%emt 0:04:16]} Bf6 {[%emt 0:09:05]} ({But not} 22... Rxd4 $6 23. Nc6 $11) 23. Qg3 {[%emt 0:03:16]} cxd4 {[%emt 0:11:04]} 24. Nd3 $19 {[%emt 0:08:50]} (24. Bf4 $17 {ist eine bessere Verteidigung.}) 24... Rb3 {[%emt 0:08:48]} 25. Bf4 {[%emt 0:08:06]} Qc2 {[%emt 0:08:18]} 26. Red1 {[%emt 0:02:54]} Bf5 {[%emt 0:04:28]} 27. Ne1 {[%emt 0:01:32]} Qxd1 {[%emt 0:04:48]} 28. Rxd1 {[%emt 0:00:15]} Rxg3 {[%emt 0:00:08]} 29. Bxg3 {[%emt 0:00:14]} d3 {[%emt 0:01:24]} 30. Bf4 {[%emt 0:02:08]} Bc3 {[%emt 0:04:15]} 31. Be3 {[%emt 0:01:29]} d2 {[%emt 0:02:08]} 32. Nf3 {[%emt 0:02:35]} Bc2 {[%emt 0:01:24]} 33. Rxd2 {[%emt 0:00:25]} Bxd2 {[%emt 0:00:13]} 34. Bxd2 {[%emt 0:00:11]} Bxa4 {[%emt 0:00:26]} 35. Kf1 {[%emt 0:00:08]} Bd1 {[%emt 0:01:24]} 36. Ke1 {[%emt 0:00:21]} Bxf3 {[%emt 0:00:21]} 37. gxf3 {[%emt 0:00:01]} Rxd2 {[%emt 0:01:11]} 38. Kxd2 {[%emt 0:00:10]} f5 {[%emt 0:00:10]} 0-1

[Event "HUN-chT Youth-Children 2018"]
[Site "Zalakaros"]
[Date "2018.07.27"]
[Round "3"]
[White "Megyaszai, Balazs"]
[Black "Pasti, Aron"]
[Result "0-1"]
[ECO "C55"]
[WhiteElo "1710"]
[BlackElo "2069"]
[Annotator "NA"]
[PlyCount "76"]
[EventDate "2018.07.26"]
[EventType "team-tourn"]
[EventCountry "HUN"]
[SourceTitle "playchess.com"]
[Source "ChessBase"]
[SourceQuality "1"]
[TimeControl "5400+30"]

1. e4 {[%emt 0:00:00]} e5 {[%emt 0:00:05]} 2. Nf3 {[%emt 0:00:24]} Nc6 {[%emt 0:00:04]} 3. d4 {[%emt 0:00:47]} exd4 {[%emt 0:00:04]} 4. Bc4 {[%emt 0:00:50]} Nf6 {[%emt 0:00:08]} 5. e5 {[%emt 0:01:25]} d5 {[%emt 0:00:06]} 6. Bb5 {[%emt 0:01:08]} Ne4 {[%emt 0:00:10]} 7. Bxc6+ {[%emt 0:01:32] C56: Two Knights: 4 d4 exd4 5 0-0 Nxe4} (7. Nxd4 Bd7 8. Bxc6 bxc6 9. O-O Be7 10. f3 Nc5 11. Be3 O-O 12. Nd2 f6 13. exf6 Rxf6 14. Bg5 Rg6 15. Bxe7 Qxe7 16. Re1 Qh4 17. N2b3 Nxb3 18. Nxb3 Rh6 19. Qd4 Qxh2+ 20. Kf2 Rg6 21. Rg1 Rf8 22. Raf1 Re8 23. Rd1 Bh3 {0-1 (23) Adhiban,B (2666)-Volokitin,A (2649) Doha 2016}) 7... bxc6 {[%emt 0:00:14]} 8. Nxd4 {[%emt 0:01:12]} Bc5 {[%emt 0:05:19]} 9. O-O {[%emt 0:01:46]} Ba6 {[%emt 0:00:29]} 10. Re1 {[%emt 0:12:52]} Nxf2 {[%emt 0:02:53]} 11. Kxf2 {[%emt 0:10:10]} Qh4+ {[%emt 0:00:07]} 12. g3 {[%emt 0:08:12]} Qxd4+ {[%emt 0:01:42]} 13. Qxd4 $146 {[%emt 0:00:51]} ({Predecessor:} 13. Be3 Qxd1 14. Rxd1 Bxe3+ 15. Kxe3 O-O {0-1 (37) Sanchez Gonzalez,S (2062)-Taboas Rodriguez,D (2323) Collado Villalba 2006}) 13... Bxd4+ {[%emt 0:00:05]} 14. Kg2 {[%emt 0:00:39]} O-O {[%emt 0:00:25]} 15. c3 {[%emt 0:01:28]} Bc5 {[%emt 0:01:49]} 16. Nd2 {[%emt 0:01:41]} Bd3 {[%emt 0:01:49]} 17. a4 {[%emt 0:04:53]} a5 {[%emt 0:03:11]} 18. Nb3 {[%emt 0:02:31]} Bb6 {[%emt 0:00:13]} 19. Nd4 {[%emt 0:10:36]} c5 {[%emt 0:01:03]} 20. Nb5 {[%emt 0:03:58]} c6 {[%emt 0:01:39]} 21. Nd6 {[%emt 0:00:43]} Rad8 {[%emt 0:14:36]} 22. Bf4 {[%emt 0:02:16]} c4 {[%emt 0:02:31]} 23. h4 {[%emt 0:02:40]} Rd7 {[%emt 0:01:29]} 24. h5 {[%emt 0:11:57]} Bc7 {[%emt 0:05:19]} 25. h6 {[%emt 0:05:28]} Rb8 {[%emt 0:00:32]} 26. Ra2 {[%emt 0:00:23]} f6 {[%emt 0:01:00]} 27. e6 {[%emt 0:03:47]} Rxd6 {[%emt 0:00:16]} 28. Bxd6 {[%emt 0:00:08]} Bxd6 {[%emt 0:00:05]} 29. hxg7 {[%emt 0:00:26]} Kxg7 {[%emt 0:00:38]} 30. g4 {[%emt 0:00:40]} Kg6 {[%emt 0:01:36]} 31. Kh3 {[%emt 0:01:18]} Be5 {[%emt 0:01:16]} 32. Rg1 {[%emt 0:03:38]} Kg5 {[%emt 0:00:50]} 33. Re1 {[%emt 0:01:08]} Re8 $19 {[%emt 0:00:34]} 34. Raa1 {[%emt 0:01:48]} Rxe6 {[%emt 0:00:03]} 35. Rad1 {[%emt 0:00:22]} Be4 {[%emt 0:00:24]} 36. Rg1 {[%emt 0:00:32]} Re8 {[%emt 0:00:27]} 37. Rdf1 {[%emt 0:00:31]} Bf4 {[%emt 0:01:45]} 38. Re1 {[%emt 0:00:34]} Rg8 {[%emt 0:00:16]} 0-1

[Event "HUN-chT Youth-Children 2018"]
[Site "Zalakaros"]
[Date "2018.07.27"]
[Round "3"]
[White "Kiss, Eniko"]
[Black "Egyed, Judit"]
[Result "0-1"]
[ECO "B91"]
[WhiteElo "1697"]
[BlackElo "2171"]
[Annotator "NA"]
[PlyCount "66"]
[EventDate "2018.07.26"]
[EventType "team-tourn"]
[EventCountry "HUN"]
[SourceTitle "playchess.com"]
[Source "ChessBase"]
[SourceQuality "1"]
[TimeControl "5400+30"]

1. e4 {[%emt 0:00:00]} c5 {[%emt 0:00:14]} 2. Nf3 {[%emt 0:00:00]} d6 {[%emt 0:00:14]} 3. d4 {[%emt 0:00:00]} cxd4 {[%emt 0:00:04]} 4. Nxd4 {[%emt 0:00:00]} Nf6 {[%emt 0:00:05]} 5. Nc3 {[%emt 0:00:00]} a6 {[%emt 0:00:04]} 6. g3 {[%emt 0:00:02]} e5 {[%emt 0:02:13]} 7. Nde2 {[%emt 0:00:15]} b5 {[%emt 0:03:14]} 8. a3 {[%emt 0:03:42]} Bb7 {[%emt 0:06:15]} 9. Bg2 {[%emt 0:00:31]} Nbd7 {[%emt 0:00:22]} 10. Nd5 {[%emt 0:05:28]} Nxd5 {[%emt 0:05:28]} 11. exd5 {[%emt 0:00:07]} Be7 {[%emt 0:01:20]} 12. O-O {[%emt 0:11:41]} f5 {[%emt 0:06:41] B91: Sicilian Najdorf: 6 g3} 13. Nc3 {[%emt 0:09:05]} (13. Be3 $11 {remains equal.}) 13... O-O {[%emt 0:07:33]} 14. b4 $146 {[%emt 0:24:11]} ({Predecessor:} 14. Bh3 Rc8 15. Qh5 g6 16. Qe2 e4 17. Bh6 Rf7 18. g4 Ne5 19. gxf5 Nf3+ 20. Kh1 gxf5 {0-1 (79) Velasquez,O-Infante Meyer,S (2205) San Salvador 1995}) 14... Bf6 {[%emt 0:02:24]} 15. Rb1 {[%emt 0:13:22]} Rc8 {[%emt 0:05:29]} 16. Ne2 {[%emt 0:04:20]} Qc7 {[%emt 0:09:43]} 17. c3 {[%emt 0:00:57]} Nb6 {[%emt 0:00:59]} 18. Bb2 {[%emt 0:12:48]} Qc4 {[%emt 0:02:20]} 19. Qd2 {[%emt 0:04:03]} Bxd5 {[%emt 0:03:42]} 20. Bxd5+ {[%emt 0:01:10]} Nxd5 {[%emt 0:00:05]} 21. Rfd1 {[%emt 0:01:04]} Nc7 {[%emt 0:03:01]} 22. Qe3 {[%emt 0:02:44]} Qc6 {[%emt 0:08:16]} 23. Qd3 {[%emt 0:01:08]} Be7 {[%emt 0:00:33]} 24. Rbc1 {[%emt 0:02:06]} d5 {[%emt 0:05:41]} 25. Qe3 {[%emt 0:02:42]} Rce8 {[%emt 0:04:04]} 26. Re1 {[%emt 0:00:44]} Bd6 {[%emt 0:01:37]} 27. Qd2 {[%emt 0:00:38]} Qd7 {[%emt 0:06:10]} 28. Red1 $2 {[%emt 0:00:37]} (28. f4 {might work better.}) 28... f4 {[%emt 0:00:30]} 29. gxf4 {[%emt 0:00:26]} (29. Kh1 $142 Qg4 30. Rf1) 29... Qg4+ {[%emt 0:00:11]} 30. Kf1 {[%emt 0:00:25]} exf4 {[%emt 0:01:03]} 31. Nd4 {[%emt 0:00:29]} f3 {[%emt 0:00:42]} 32. Nxf3 {[%emt 0:00:06]} Qxf3 {[%emt 0:00:48]} 33. Kg1 {[%emt 0:00:02]} Rf6 {[%emt 0:00:10]} 0-1

[Event "HUN-chT Youth-Children 2018"]
[Site "Zalakaros"]
[Date "2018.07.27"]
[Round "3"]
[White "Gulacsi, Donat Ferenc"]
[Black "Kocsmar, Akos"]
[Result "1/2-1/2"]
[ECO "B20"]
[WhiteElo "1610"]
[BlackElo "1721"]
[Annotator "NA RC"]
[PlyCount "44"]
[EventDate "2018.07.26"]
[EventType "team-tourn"]
[EventCountry "HUN"]
[SourceTitle "playchess.com"]
[Source "ChessBase"]
[SourceQuality "1"]
[TimeControl "5400+30"]

1. e4 {[%emt 0:00:00]} c5 {[%emt 0:00:25]} 2. Ne2 {[%emt 0:00:47]} d6 {[%emt 0:00:18]} 3. c4 {[%emt 0:00:29]} Nf6 {[%emt 0:00:21]} 4. Nbc3 {[%emt 0:00:31]} g6 {[%emt 0:00:10]} 5. d4 {[%emt 0:00:38]} cxd4 {[%emt 0:00:38]} 6. Nxd4 {[%emt 0:00:11]} Bg7 {[%emt 0:00:20]} 7. Be2 {[%emt 0:01:07]} O-O {[%emt 0:00:58]} 8. Be3 {[%emt 0:00:49]} Nc6 {[%emt 0:00:55]} 9. O-O {[%emt 0:00:34]} Nxd4 {[%emt 0:00:28]} 10. Bxd4 {[%emt 0:00:43]} Bd7 {[%emt 0:00:04]} 11. Rc1 {[%emt 0:01:00]} Bc6 {[%emt 0:00:08]} 12. Qd3 {[%emt 0:05:04]} Nd7 {[%emt 0:04:06]} 13. Bxg7 {[%emt 0:03:06]} Kxg7 {[%emt 0:00:01]} 14. Qd4+ {[%emt 0:00:44]} Kg8 {[%emt 0:00:58]} 15. Nd5 {[%emt 0:11:05]} a5 {[%emt 0:02:25]} 16. f4 {[%emt 0:25:07]} Rc8 {[%emt 0:01:03]} 17. Bg4 {[%emt 0:10:39]} e6 {[%emt 0:09:34]} 18. Nc3 {[%emt 0:04:31]} Qb6 {[%emt 0:01:23]} 19. Qxb6 {[%emt 0:01:06]} Nxb6 {[%emt 0:00:11]} 20. b3 {[%emt 0:07:39]} Rcd8 {[%emt 0:01:28]} 21. f5 {[%emt 0:02:44]} e5 {[%emt 0:00:34]} 22. f6 {[%emt 0:06:24]} h5 {[%emt 0:00:07]} 1/2-1/2

[Event "HUN-chT Youth-Children 2018"]
[Site "Zalakaros"]
[Date "2018.07.27"]
[Round "3"]
[White "Bako, Milan"]
[Black "Fule, Simon"]
[Result "1/2-1/2"]
[ECO "C28"]
[WhiteElo "1573"]
[BlackElo "2061"]
[Annotator "NA"]
[PlyCount "55"]
[EventDate "2018.07.26"]
[EventType "team-tourn"]
[EventCountry "HUN"]
[SourceTitle "playchess.com"]
[Source "ChessBase"]
[SourceQuality "1"]
[TimeControl "5400+30"]

1. e4 {[%emt 0:00:00]} e5 {[%emt 0:00:05]} 2. Bc4 {[%emt 0:00:00]} Nc6 {[%emt 0:00:11]} 3. Nc3 {[%emt 0:00:00]} Nf6 {[%emt 0:00:09]} 4. d3 {[%emt 0:00:00]} Be7 {[%emt 0:00:31]} 5. f4 {[%emt 0:00:18]} exf4 {[%emt 0:01:00]} 6. Bxf4 {[%emt 0:00:11]} d6 {[%emt 0:00:07]} 7. Nf3 {[%emt 0:01:12]} Na5 {[%emt 0:00:42]} 8. Bb3 {[%emt 0:00:25]} Nxb3 {[%emt 0:00:07]} 9. axb3 {[%emt 0:00:07]} O-O {[%emt 0:00:49]} 10. h3 {[%emt 0:01:09]} Nh5 {[%emt 0:01:30]} 11. Qd2 {[%emt 0:01:59]} f5 {[%emt 0:05:39]} 12. Bg5 {[%emt 0:02:48]} Ng3 {[%emt 0:06:11]} 13. Rg1 {[%emt 0:01:15]} Bxg5 {[%emt 0:12:05]} 14. Nxg5 {[%emt 0:01:02]} b6 {[%emt 0:06:13]} 15. O-O-O {[%emt 0:02:01]} h6 {[%emt 0:01:10]} 16. Nf3 {[%emt 0:00:13]} Bb7 {[%emt 0:00:26]} 17. Rde1 {[%emt 0:01:40]} f4 {[%emt 0:03:08]} 18. Ne2 {[%emt 0:00:51]} Nxe2+ {[%emt 0:01:37]} 19. Rxe2 {[%emt 0:01:04]} a5 {[%emt 0:00:08]} 20. Qc3 {[%emt 0:00:14]} c5 {[%emt 0:02:38]} 21. g3 {[%emt 0:01:29]} Qf6 {[%emt 0:03:42]} 22. gxf4 {[%emt 0:00:48]} Qxc3 {[%emt 0:00:21]} 23. bxc3 {[%emt 0:00:06]} Rxf4 {[%emt 0:00:04]} 24. Nd2 {[%emt 0:00:20]} b5 {[%emt 0:00:33]} 25. c4 {[%emt 0:01:05]} b4 {[%emt 0:00:40]} 26. e5 {[%emt 0:01:02]} Re8 {[%emt 0:01:34]} 27. Rge1 {[%emt 0:00:26]} d5 {[%emt 0:01:16]} 28. e6 {[%emt 0:00:35]} 1/2-1/2

[Event "HUN-chT Youth-Children 2018"]
[Site "Zalakaros"]
[Date "2018.07.27"]
[Round "3"]
[White "Markus, Molli Amina"]
[Black "Kobol, Kitti"]
[Result "1-0"]
[ECO "D02"]
[WhiteElo "1566"]
[BlackElo "1224"]
[Annotator "NA"]
[PlyCount "157"]
[EventDate "2018.07.26"]
[EventType "team-tourn"]
[EventCountry "HUN"]
[SourceTitle "playchess.com"]
[Source "ChessBase"]
[SourceQuality "1"]
[TimeControl "5400+30"]

1. d4 {[%emt 0:00:00]} d5 {[%emt 0:00:06]} 2. Nf3 {[%emt 0:00:11]} Nf6 {[%emt 0:00:10]} 3. g3 {[%emt 0:00:52]} Bf5 {[%emt 0:04:14]} 4. Bg2 {[%emt 0:01:16]} e6 {[%emt 0:02:43]} 5. O-O {[%emt 0:01:50]} Bd6 {[%emt 0:01:09]} 6. c4 {[%emt 0:01:48]} b6 {[%emt 0:01:10]} 7. b3 {[%emt 0:03:35]} Nbd7 {[%emt 0:03:48]} 8. Bb2 {[%emt 0:03:21]} O-O {[%emt 0:03:58]} 9. Nbd2 {[%emt 0:01:38]} c5 {[%emt 0:03:02]} 10. Rc1 {[%emt 0:03:43]} Rc8 {[%emt 0:01:42]} 11. Re1 {[%emt 0:01:51]} Re8 {[%emt 0:06:26]} 12. e3 {[%emt 0:04:38]} Bg4 {[%emt 0:01:59]} 13. e4 {[%emt 0:02:34]} dxe4 {[%emt 0:00:47]} 14. Nxe4 {[%emt 0:00:42]} Nxe4 {[%emt 0:00:31]} 15. Rxe4 {[%emt 0:00:16]} Nf6 {[%emt 0:00:25]} 16. Re1 {[%emt 0:00:47]} cxd4 {[%emt 0:01:26]} 17. Qxd4 {[%emt 0:01:33]} Be7 {[%emt 0:01:13]} 18. Qxd8 {[%emt 0:02:35]} Rexd8 {[%emt 0:00:13]} 19. Ne5 {[%emt 0:01:19]} Bf5 {[%emt 0:01:38]} 20. Nc6 {[%emt 0:02:14]} Rd7 {[%emt 0:01:12]} 21. Nxe7+ {[%emt 0:01:04]} Rxe7 {[%emt 0:00:18]} 22. Bxf6 {[%emt 0:00:37]} gxf6 {[%emt 0:00:09]} 23. Rcd1 {[%emt 0:02:02]} e5 {[%emt 0:01:51]} 24. Rd2 {[%emt 0:02:24]} Rd7 {[%emt 0:01:21]} 25. Rxd7 {[%emt 0:01:11]} Bxd7 {[%emt 0:00:12]} 26. Rd1 {[%emt 0:02:02]} Be6 {[%emt 0:00:52]} 27. Kf1 {[%emt 0:01:24]} Kf8 {[%emt 0:00:37]} 28. Ke2 {[%emt 0:02:28]} Ke7 {[%emt 0:01:44]} 29. Rd2 {[%emt 0:03:47]} f5 {[%emt 0:03:28]} 30. Ke3 {[%emt 0:01:47]} Rg8 {[%emt 0:06:37]} 31. f3 {[%emt 0:02:10]} f6 {[%emt 0:02:37]} 32. Bf1 {[%emt 0:03:14]} Bd7 {[%emt 0:06:10]} 33. b4 {[%emt 0:02:45]} Kd8 {[%emt 0:01:38]} 34. Rd6 {[%emt 0:03:40]} Rf8 {[%emt 0:01:17]} 35. a3 {[%emt 0:02:48]} Kc7 {[%emt 0:00:39]} 36. Rd2 {[%emt 0:00:45]} a6 {[%emt 0:03:54]} 37. Rc2 {[%emt 0:01:11]} Ba4 {[%emt 0:02:29]} 38. Rc3 {[%emt 0:00:40]} Rd8 {[%emt 0:02:55]} 39. Bd3 {[%emt 0:00:51]} Bd7 {[%emt 0:00:32]} 40. c5 {[%emt 0:05:09]} bxc5 {[%emt 0:01:42]} 41. Rxc5+ {[%emt 0:02:11]} Kb6 {[%emt 0:00:51]} 42. Rd5 {[%emt 0:01:01]} Kc6 {[%emt 0:03:04]} 43. Ra5 {[%emt 0:00:38]} Bc8 {[%emt 0:02:08]} 44. Bxa6 {[%emt 0:01:27]} Kb6 {[%emt 0:00:14]} 45. Bxc8 {[%emt 0:00:59]} Rxc8 {[%emt 0:00:59]} 46. Rd5 {[%emt 0:00:14]} Rc3+ {[%emt 0:01:03]} 47. Rd3 {[%emt 0:00:37]} Rc6 {[%emt 0:00:41]} 48. Kd2 {[%emt 0:00:42]} Kb5 {[%emt 0:02:16]} 49. Rc3 {[%emt 0:00:51]} Rd6+ {[%emt 0:00:40]} 50. Kc2 {[%emt 0:00:22]} Rd5 {[%emt 0:00:21]} 51. Rd3 {[%emt 0:02:59]} Rxd3 {[%emt 0:02:04]} 52. Kxd3 {[%emt 0:00:05]} h6 {[%emt 0:00:29]} 53. h3 h5 {[%emt 0:00:32]} 54. h4 {[%emt 0:00:34]} Kb6 {[%emt 0:00:40]} 55. a4 {[%emt 0:00:22]} Kc6 {[%emt 0:00:22]} 56. a5 {[%emt 0:00:46]} Kb5 {[%emt 0:00:20]} 57. Ke3 {[%emt 0:01:46]} Ka6 {[%emt 0:00:54]} 58. g4 {[%emt 0:03:07]} fxg4 {[%emt 0:00:28]} 59. fxg4 {[%emt 0:00:12]} hxg4 {[%emt 0:00:08]} 60. h5 {[%emt 0:00:14]} f5 {[%emt 0:00:27]} 61. h6 {[%emt 0:00:09]} f4+ {[%emt 0:00:55]} 62. Kf2 {[%emt 0:00:15]} e4 {[%emt 0:00:20]} 63. h7 {[%emt 0:00:11]} e3+ {[%emt 0:00:23]} 64. Ke2 {[%emt 0:00:22]} g3 {[%emt 0:01:39]} 65. Kf3 {[%emt 0:00:10]} g2 {[%emt 0:00:55]} 66. Kxg2 {[%emt 0:00:05]} e2 {[%emt 0:00:11]} 67. Kf2 {[%emt 0:00:03]} f3 {[%emt 0:00:05]} 68. h8=Q {[%emt 0:00:05]} Kb5 {[%emt 0:00:10]} 69. Qe8+ {[%emt 0:00:20]} Kxb4 {[%emt 0:00:23]} 70. Kxf3 {[%emt 0:00:13]} Kxa5 {[%emt 0:00:13]} 71. Kxe2 {[%emt 0:00:06]} Kb4 {[%emt 0:00:13]} 72. Qc6 {[%emt 0:00:06]} Kb3 {[%emt 0:00:11]} 73. Kd3 {[%emt 0:00:07]} Kb4 {[%emt 0:00:16]} 74. Qc4+ {[%emt 0:00:04]} Ka5 {[%emt 0:00:08]} 75. Qb3 {[%emt 0:00:08]} Ka6 {[%emt 0:00:04]} 76. Kc4 {[%emt 0:00:15]} Ka7 {[%emt 0:00:13]} 77. Kc5 {[%emt 0:00:06]} Ka8 {[%emt 0:00:14]} 78. Kc6 {[%emt 0:00:05]} Ka7 {[%emt 0:00:11]} 79. Qb7# {[%emt 0:00:03]} 1-0

[Event "HUN-chT Youth-Children 2018"]
[Site "Zalakaros"]
[Date "2018.07.27"]
[Round "3"]
[White "Horvath, Eszter dr"]
[Black "Kovacs, Kristof"]
[Result "0-1"]
[ECO "C47"]
[WhiteElo "1447"]
[BlackElo "1351"]
[Annotator "NA"]
[PlyCount "80"]
[EventDate "2018.07.26"]
[EventType "team-tourn"]
[EventCountry "HUN"]
[SourceTitle "playchess.com"]
[Source "ChessBase"]
[SourceQuality "1"]
[TimeControl "5400+30"]

1. e4 {[%emt 0:00:00]} e5 {[%emt 0:00:09]} 2. Nf3 {[%emt 0:00:00]} Nc6 {[%emt 0:00:14]} 3. Nc3 {[%emt 0:00:01]} Nf6 {[%emt 0:00:08]} 4. d4 {[%emt 0:00:19]} exd4 {[%emt 0:00:30]} 5. Nxd4 {[%emt 0:00:19]} Bc5 {[%emt 0:00:39]} 6. Be3 {[%emt 0:00:31]} Nxd4 {[%emt 0:01:00]} 7. Bxd4 {[%emt 0:02:32]} Bxd4 {[%emt 0:00:31]} 8. Qxd4 {[%emt 0:00:25]} d6 {[%emt 0:00:37]} 9. O-O-O {[%emt 0:02:15]} Be6 {[%emt 0:00:39]} 10. f4 {[%emt 0:01:30]} Bg4 {[%emt 0:02:13]} 11. Rd2 {[%emt 0:00:21]} O-O {[%emt 0:02:12]} 12. h3 {[%emt 0:03:18]} Bc8 {[%emt 0:01:35]} 13. g4 {[%emt 0:00:43]} Qd7 {[%emt 0:02:13]} 14. g5 {[%emt 0:02:19]} Ne8 {[%emt 0:02:26]} 15. Bd3 {[%emt 0:00:25]} c5 {[%emt 0:00:36]} 16. Qd5 {[%emt 0:00:38]} Nc7 {[%emt 0:00:26]} 17. Qb3 {[%emt 0:00:46]} Qc6 {[%emt 0:00:58]} 18. Rdd1 {[%emt 0:00:28]} Be6 {[%emt 0:00:37]} 19. Nd5 {[%emt 0:03:03]} Nxd5 {[%emt 0:00:43]} 20. Qc4 {[%emt 0:00:24]} Ne3 {[%emt 0:00:37]} 21. Qc3 {[%emt 0:00:55]} Nxd1 {[%emt 0:00:18]} 22. Rxd1 {[%emt 0:00:27]} Bxh3 {[%emt 0:00:53]} 23. Re1 {[%emt 0:00:43]} a6 {[%emt 0:00:44]} 24. Qd2 {[%emt 0:00:22]} c4 {[%emt 0:00:38]} 25. Be2 {[%emt 0:00:51]} b5 {[%emt 0:00:53]} 26. Bf3 {[%emt 0:02:31]} a5 {[%emt 0:00:30]} 27. Qh2 {[%emt 0:00:34]} Bd7 {[%emt 0:00:27]} 28. Qg3 {[%emt 0:00:21]} Qc5 {[%emt 0:00:29]} 29. e5 {[%emt 0:00:13]} Rac8 {[%emt 0:00:30]} 30. Be4 {[%emt 0:00:03]} d5 {[%emt 0:00:24]} 31. Bxh7+ {[%emt 0:00:36]} Kxh7 {[%emt 0:01:35]} 32. Rg1 {[%emt 0:00:29]} Bf5 {[%emt 0:01:25]} 33. Rh1+ {[%emt 0:01:01]} Kg6 {[%emt 0:00:51]} 34. Qh4 {[%emt 0:00:31]} Rh8 {[%emt 0:00:20]} 35. Qh6+ {[%emt 0:01:04]} gxh6 {[%emt 0:00:43]} 36. gxh6 {[%emt 0:00:15]} Rxh6 {[%emt 0:00:22]} 37. Rf1 {[%emt 0:00:26]} c3 {[%emt 0:00:10]} 38. Rf3 {[%emt 0:00:29]} cxb2+ {[%emt 0:00:10]} 39. Kxb2 {[%emt 0:01:22]} Qxc2+ {[%emt 0:00:12]} 40. Ka3 {[%emt 0:00:18]} b4# {[%emt 0:00:10]} 0-1